Cogmind - Beta 16.1 *** ADVENTURER MODE // 2026.03.23 @ 23:34:47 Player: robocop Result: Self-destructed Performance ------------- Evolutions (1) 500 Regions Visited (3) 600 Robots Destroyed (52) 260 Value Destroyed (1184) 1184 Prototype IDs (1) 20 Alien Tech Used (0) 0 Bonus (200) 200 TOTAL SCORE: 2764 Bonus ------- Follower Combat Kills 200 Cogmind --------- Core Integrity 301/400 Matter 64/300 Energy 116/160 System Corruption 0% Temperature Cool (0) Movement Treading (160) Location -9/Materials Parts ------- > --- POWER (1) -------- Light Nuclear Core > --- PROPULSION (2) --- Light Treads Light Treads > --- UTILITY (4) ------ Large Storage Unit Signal Interpreter Light Armor Plating > --- WEAPON (2) ------- Heavy Assault Rifle Improved Assault Rifle > --- INVENTORY (15) --- Light Nuclear Core Light Treads Light Treads Improved Heat Sink Small Storage Unit Targeting Computer Utility Shielding Heavy Assault Rifle Heavy Assault Rifle Mini Grenade Launcher Mini Grenade Launcher Hammer Peak State ------------ > --- POWER ------------ Improved Ion Engine > --- PROPULSION ------- Light Treads Light Treads > --- UTILITY ---------- Large Storage Unit Structural Scanner Sensor Array Signal Interpreter > --- WEAPON ----------- Improved Assault Rifle Mini Grenade Launcher > --- INVENTORY -------- Light Nuclear Core Light Treads Light Treads Wheel Improved Heat Sink Small Storage Unit Transport Network Coupler Targeting Computer Utility Shielding Light Armor Plating Heavy Assault Rifle Heavy Assault Rifle Mini Grenade Launcher Hammer [Rating: 15] Favorites ----------- Power Improved Ion Engine Engine Improved Ion Engine Power Core Light Nuclear Core Propulsion Light Treads Treads Light Treads Leg Aluminum Leg Utility Large Storage Unit Device Structural Scanner Storage Large Storage Unit Processor Signal Interpreter Protection Light Armor Plating Weapon Heavy Assault Rifle Energy Gun Small Laser Ballistic Gun Heavy Assault Rifle Launcher Mini Grenade Launcher Build | -11 -10 -10 -9 ------- Run | Yrd Mat Min Mat Slots Evolved 2 | . . . 2 Power . | . . . . Propulsion . | . . . . Utility 2 | . . . 2 Weapon . | . . . . Parts Attached 21 | 2 7 2 10 Power 3 | . 1 1 1 Engine 2 | . 1 1 . Core 1 | . . . 1 Reactor . | . . . . Propulsion 7 | 2 . 1 4 Treads 7 | 2 . 1 4 Leg . | . . . . Wheel . | . . . . Hover . | . . . . Flight . | . . . . Utility 5 | . 2 . 3 Device 2 | . 1 . 1 Storage 1 | . 1 . . Processor 1 | . . . 1 Hackware . | . . . . Protection 1 | . . . 1 Artifact . | . . . . Weapon 6 | . 4 . 2 Energy Gun . | . . . . Energy Cannon . | . . . . Ballistic Gun 5 | . 4 . 1 Ballistic Cannon . | . . . . Launcher 1 | . . . 1 Special Weapon . | . . . . Impact Weapon . | . . . . Slashing Weapon . | . . . . Piercing Weapon . | . . . . Special Melee Weapon . | . . . . Unidentified Prototypes 1 | . . . 1 Parts Lost 4 | . . . 4 Power . | . . . . Propulsion . | . . . . Utility 2 | . . . 2 Weapon 2 | . . . 2 Highest Loss Streak 1 | . . . 1 To Critical Strikes . | . . . . Average Backups 11 | 6 10 13 13 Power . | 1 . 1 1 Propulsion 2 | 4 1 1 2 Utility 4 | . 3 5 5 Weapon 4 | 1 4 5 3 Tool/Special . | . . . . Unused Backups 15 | . 2 1 12 Power 2 | . . 1 1 Propulsion 4 | . 2 . 2 Utility 5 | . . . 5 Weapon 4 | . . . 4 Tool/Special . | . . . . Average Slot Usage (%) 92 | . 92 100 88 Engine 12 | . 13 14 10 Treads 25 | . 27 28 22 Device 13 | . 9 14 18 Storage 12 | . 14 14 11 Processor 4 | . . . 10 Energy Gun 1 | . 2 . . Ballistic Gun 19 | . 23 28 11 Launcher 1 | . . . 4 Peak Build Rating 15 | 6 10 12 15 Average Rating 10 | 6 8 11 12 On Entrance 8 | 6 6 10 12 Avg Prop Armor Cover (%) . | . . . . Naked Turns . | . . . . Heaviest Build 35 | 12 32 34 35 Greatest Support 40 | 40 40 40 40 Greatest Overweight (x) 6 | . 6 . . Average Overweight (x) . | . . . . Largest Inventory Capacity 15 | 8 15 15 15 Average Capacity 13 | 8 12 15 15 Most Carried 15 | 6 15 15 15 Average Carried 11 | 6 10 13 13 Final Capacity 15 | 8 15 15 15 Final Carried 14 | 6 13 14 12 Class Distribution -------------------- 96% | Mutant 3% | Skirmisher Dominant Class ---------------- Mutant | -10/Materials Mutant | -10/Mines Mutant | -9/Materials Resources | -11 -10 -10 -9 ----------- Run | Yrd Mat Min Mat Matter Collected 890 | 200 296 107 287 Remotely . | . . . . Salvage Created 1418 | . 383 283 752 Parts 87 | . 23 12 52 Haulers Intercepted 4 | . 2 . 2 Recyclers Shooed 3 | . 2 1 . Parts Field Recycled . | . . . . Retrieved Matter . | . . . . Parts Self-Destructed . | . . . . Prevented . | . . . . Parts Restored . | . . . . Kills | -11 -10 -10 -9 ------- Run | Yrd Mat Min Mat Combat Hostiles Destroyed 39 | . 12 6 21 Guns 30 | . 12 6 12 AOE 9 | . . . 9 Classes Destroyed 10 | . 6 1 3 Worker 1 | . 1 . . Builder 1 | . . . 1 Hauler 4 | . 2 . 2 Recycler 1 | . . . 1 Operator 1 | . . . 1 Watcher 5 | . 1 . 4 Swarmer 20 | . 9 . 11 Grunt 11 | . 2 4 5 Sentry 7 | . . 2 5 Subdweller 1 | . 1 . . Best Kill Streak 7 | . 4 4 7 Combat Bots Only 6 | . 3 4 6 Max Kills in Single Turn 3 | . 2 1 3 Gunslinging . | . . . . Exploded 3 | . . . 3 Melee . | . . . . Uniques/NPCs Destroyed . | . . . . Combat | -11 -10 -10 -9 -------- Run | Yrd Mat Min Mat Hostile Shots Fired 177 | . 50 46 81 Missed 53 | . 13 12 28 Hits 124 | . 37 34 53 Projectile 124 | . 37 34 53 Critical Strikes 6 | . 1 4 1 Damage Taken 1186 | . 254 365 567 Core 188 | . 48 41 99 Absorbed by Shields . | . . . . Ignored by Resistances 357 | . 84 104 169 Core Remaining (%) 82 | 100 . 64 . Volleys Fired 130 | . 41 23 66 Largest 2 | . 2 2 2 Hottest 60 | . 60 46 53 Shots Fired 206 | . 73 46 87 Gun 188 | . 73 46 69 Cannon . | . . . . Launcher 18 | . . . 18 Special . | . . . . Kinetic 184 | . 69 46 69 Thermal 4 | . 4 . . Explosive 18 | . . . 18 Electromagnetic . | . . . . Robot Hit Streak 40 | . 15 40 26 Robot Miss Streak 2 | . 2 1 1 Penetration Max . | . . . . Secondary Targets 4 | . 1 2 1 Max Gunslinging Chain 1 | . 1 1 1 Shots Hit Robots 165 | . 56 43 66 Core Hits 74 | . 21 12 41 Critical Kills . | . . . . Critical Parts Destroyed . | . . . . Critical Strikes . | . . . . Melee Attacks . | . . . . Impact . | . . . . Slashing . | . . . . Piercing . | . . . . Sneak Attacks . | . . . . Combat Hostiles . | . . . . Follow-up Attacks . | . . . . Damage Inflicted 3181 | . 895 656 1630 Guns 2345 | . 884 655 806 Cannons . | . . . . Explosions 822 | . . . 822 Melee . | . . . . Ramming 14 | . 11 1 2 Kinetic 2300 | . 839 655 806 Thermal 45 | . 45 . . Explosive 813 | . . . 813 Electromagnetic 9 | . . . 9 Impact . | . . . . Slashing . | . . . . Piercing . | . . . . Highest Corruption . | . . . . Average Corruption . | . . . . Corruption Purged . | . . . . Corruption Blocked . | . . . . Overload Shots . | . . . . Overflow Damage 10 | . . . 10 Projectiles . | . . . . Explosions 10 | . . . 10 Melee . | . . . . Knockbacks . | . . . . Impact . | . . . . Kinetic . | . . . . Secondary . | . . . . Self-Inflicted Damage 114 | . . . 114 Shots 5 | . . . 5 Rammed 6 | . 4 1 1 Targets Rammed 6 | . 4 1 1 Kicked . | . . . . Crushed . | . . . . Highest Temperature 49 | . 40 49 7 Average Temperature 16 | . 11 20 3 Received Heat Transfer 474 | . 84 216 174 Siege Activations . | . . . . Martial Activations . | . . . . Shielding Activations . | . . . . Robots Disrupted . | . . . . Combat Hostiles . | . . . . Robots Corrupted . | . . . . Combat Hostiles . | . . . . Parts Fried . | . . . . Impact Corruptions . | . . . . Robots Melted . | . . . . Combat Hostiles . | . . . . Parts Melted . | . . . . Heat Transferred 100 | . 100 . . Parts Sabotaged . | . . . . Parts Stolen . | . . . . Parts Stripped . | . . . . Power Chain Reactions . | . . . . Alert | -11 -10 -10 -9 ------- Run | Yrd Mat Min Mat Maximum Alert Level 1 | . . . 1 Low Security (%) 90 | 100 100 100 75 Level 1 9 | . . . 24 Level 2 . | . . . . Level 3 . | . . . . Level 4 . | . . . . Level 5 . | . . . . High Security . | . . . . Max Security . | . . . . Peak Influence 397 | . 90 80 397 Initial . | . . . . Average 67 | . 15 19 152 Influence Increases 1444 | . 297 140 1007 Destroy 0b10 Robot/C 920 | . 220 120 580 Destroy 0b10 Robot/NC 65 | . 20 . 45 Destroy Leader 238 | . 46 20 172 Allied During Kill 6 | . . . 6 Successful Hack 10 | . 10 . . Disable Machine 90 | . . . 90 Destroy Structure 100 | . 1 . 99 Lose Combat Pursuer 15 | . . . 15 Influence Decreases 1047 | . 297 140 610 Time Decay 987 | . 297 140 550 Lost Part 40 | . . . 40 Lost Ally 20 | . . . 20 Squads Dispatched 4 | . . . 4 Investigation 2 | . . . 2 Extermination . | . . . . Reinforcement 2 | . . . 2 Assault . | . . . . Garrison . | . . . . Intercept . | . . . . Searches Triggered . | . . . . Construction Impeded 1 | . . . 1 Haulers Reinforced . | . . . . Active Scanning Responses . | . . . . Cargo Convoy Interrupts . | . . . . Stealth | -11 -10 -10 -9 --------- Run | Yrd Mat Min Mat Distress Signals 4 | . 1 . 3 Communications Jammed . | . . . . Distress Signals . | . . . . Times Spotted 60 | . 22 6 32 Peak Tracking Total 5 | . 5 4 5 Tactical Retreats 2 | . 1 . 1 Traps | -11 -10 -10 -9 ------- Run | Yrd Mat Min Mat Traps Triggered 4 | . 3 . 1 Indirectly . | . . . . Trap Hack Attempts . | . . . . Triggered . | . . . . Disarmed . | . . . . Reprogrammed . | . . . . Reused . | . . . . Traps Extracted . | . . . . Installed . | . . . . Triggered . | . . . . Machines | -11 -10 -10 -9 ---------- Run | Yrd Mat Min Mat Machines Disabled 10 | . . . 10 Max in Single Turn 3 | . . . 3 Machines Repaired . | . . . . Machines Dismantled . | . . . . Machines Sabotaged . | . . . . Overloaded Fab Kills . | . . . . Hacking | -11 -10 -10 -9 --------- Run | Yrd Mat Min Mat Machines Accessed 3 | . 2 . 1 Terminals 2 | . 2 . . Fabricators . | . . . . Repair Stations . | . . . . Recycling Units . | . . . . Scanalyzers 1 | . . . 1 Garrison Access . | . . . . Total Hacks 11 | . 8 . 3 Successful 5 | . 3 . 2 Failed 5 | . 5 . . Catastrophic . | . . . . Database Lockouts 1 | . . . 1 Manual 8 | . 8 . . Terminals 8 | . 8 . . Fabricators . | . . . . Repair Stations . | . . . . Recycling Units . | . . . . Scanalyzers 3 | . . . 3 Garrison Access . | . . . . Terminal Hacks 2 | . 2 . . Part Schematic 1 | . 1 . . Terminal Index 1 | . 1 . . Fabricator Hacks . | . . . . Repair Station Hacks . | . . . . Recycling Unit Hacks . | . . . . Scanalyzer 2 | . . . 2 Retrieve Study 2 | . . . 2 Garrison Access Hacks . | . . . . Unauthorized Hacks 1 | . 1 . . Terminals 1 | . 1 . . Botnet 1 | . 1 . . Fabricators . | . . . . Repair Stations . | . . . . Recycling Units . | . . . . Scanalyzers . | . . . . Garrison Access . | . . . . Data Cores Recovered 1 | . . . 1 Used . | . . . . Hacking Detections 2 | . 2 . . Full Trace Events 1 | . 1 . . Feedback Events . | . . . . Feedback Blocked . | . . . . Robot Schematics Acquired . | . . . . Robots Built . | . . . . Authchips . | . . . . Time . | . . . . Total Robot Build Rating . | . . . . Part Schematics Acquired 1 | . 1 . . Parts Built . | . . . . Authchips . | . . . . Time . | . . . . Total Part Build Rating . | . . . . Part Studies Acquired 2 | . . . 2 Parts Repaired . | . . . . Time . | . . . . Parts Recycled . | . . . . Recycled Matter . | . . . . Retrieved Matter . | . . . . Retrieved Components . | . . . . Parts Scanalyzed . | . . . . Part Schematics Acquired . | . . . . Parts Damaged . | . . . . Bothacking | -11 -10 -10 -9 ------------ Run | Yrd Mat Min Mat Used RIF Installer . | . . . . Robots Hacked . | . . . . Non-combat . | . . . . Combat . | . . . . Robot Hacks Applied . | . . . . Relay Couplers Released . | . . . . Fabnet Peak Effective % . | . . . . Robots Rewired . | . . . . Allies Hacked . | . . . . Hacks Repelled . | . . . . Allies | -11 -10 -10 -9 -------- Run | Yrd Mat Min Mat Total Allies 1 | . . 1 . Largest Group 1 | . . 1 1 Highest-Rated Group 31 | . . 31 31 Highest-Rated Ally 31 | . . 31 31 Total Orders . | . . . . Ally Attacks 22 | . . . 22 Total Damage 320 | . . . 320 Kills 8 | . . . 8 Allies Corrupted . | . . . . Allies Melted . | . . . . Intel | -11 -10 -10 -9 ------- Run | Yrd Mat Min Mat Active Infowar (turns) 2650 | . 981 520 1149 Sensors 858 | . . . 858 Structural 2650 | . 981 520 1149 Robot Analysis Total . | . . . . Derelict Logs Recovered 1 | . . 1 . Drone Launches . | . . . . Drone Recoveries . | . . . . Exploration | -11 -10 -10 -9 ------------- Run | Yrd Mat Min Mat Turns Passed 3163 | 3 1447 520 1193 Spaces Moved 1632 | 1 743 274 614 Core 4 | . 4 . . Treads 1628 | 1 739 274 614 Legs . | . . . . Wheels . | . . . . Hover . | . . . . Flight . | . . . . Fastest Speed 160 | 160 160 160 160 Average Speed 160 | 160 161 160 160 Slowest Speed 350 | 160 350 160 160 Overloaded Moves . | . . . . Propulsion Burnouts . | . . . . Robots Hopped . | . . . . Potential Cave-ins . | . . . . Cave-ins Triggered . | . . . . Exploration Rate (%) 56 | 2 92 68 65 Regions Visited 3 Branch Regions 1 Pre-discovered Areas . | . . . . Known Exits Taken . | . . . . Unknown Exits Taken 3 | 1 1 1 . Scrap Searched 1 | . . 1 . Spaces Dug 10 | . . . 10 Terrain Destroyed 109 | . . . 109 Melee . | . . . . Projectile . | . . . . AOE 109 | . . . 109 Terrain Rammed . | . . . . Walls Destroyed . | . . . . Machines Disabled . | . . . . Actions | -11 -10 -10 -9 --------- Run | Yrd Mat Min Mat Total 1967 | 2 916 310 739 Wait 122 | . 96 2 24 Move 1629 | . 742 273 614 Hop . | . . . . Pick Up 35 | . 18 5 12 Fast Attach 2 | . 1 . 1 Attach 13 | . 7 . 6 Detach 1 | . . . 1 Swap 9 | 2 1 2 4 Drop 20 | . 6 4 10 Fire 130 | . 41 23 66 Melee . | . . . . Ram . | . . . . Kick . | . . . . Crush 6 | . 4 1 1 Escape Stasis . | . . . . Rewire . | . . . . Trap . | . . . . Miscellaneous . | . . . . Route ------- -11/Scrapyard -10/Materials (discovered 5 exits: *Mat x3 / [*Min] / [Sub]) -10/Mines (discovered 2 exits: *Mat / [Sub]) -9/Materials (discovered 4 exits: [*Mat] / [*Min] / [*Sto x2]) History --------- Turn | Location | Event 4 | -11/Scrapyard | Discovered new exit (range 0) 4 | -11/Scrapyard | Entered Materials 172 | -10/Materials | Discovered new exit (range 7) 327 | -10/Materials | Build established: Mutant 402 | -10/Materials | Discovered new exit (range 16) 540 | -10/Materials | Discovered new exit (range 14) 604 | -10/Materials | Derelicts attacked the area 775 | -10/Materials | Discovered new exit (range 11) 1171 | -10/Materials | Discovered new exit (range 13) 1451 | -10/Materials | Entered Mines 1485 | -10/Mines | Discovered new exit (range 12) 1942 | -10/Mines | Received a Mining Laser from a helpful Derelict 1945 | -10/Mines | Discovered new exit (range 8) 1971 | -10/Mines | Entered Materials 1971 | -9/Materials | Accompanied by 1 ally 1971 | -9/Materials | Evolved 2 slots: Utility x2 2057 | -9/Materials | Discovered new exit (range 8) 2366 | -9/Materials | Discovered new exit (range 7) 2404 | -9/Materials | Central database locked down 2418 | -9/Materials | Discovered new exit (range 10) 2692 | -9/Materials | Discovered new exit (range 10) 3164 | -9/Materials | Self-destructed Last Messages --------------- 03095_ Acquired 3 matter. 03098_ Acquired 20 matter. 03106_ G-34 Mercenary destroyed. 03106_ Switching to secondary target: G-34 Mercenary. 03111_ The unstable cave ceiling collapses. 03115_ Acquired Hvy. Assault Rifle. 03120_ Structural Scanner destroyed. 03120_ G-34 Mercenary destroyed. 03125_ Dropped Lgt. Treads+. 03125_ Acquired Lgt. Treads+. 03130_ Dropped Imp. Ion Engine. 03131_ Acquired 35 matter. 03134_ Acquired 41 matter. 03137_ S-10 Pest destroyed. 03143_ A-02 Transporter destroyed. 03146_ S-10 Pest destroyed. 03152_ G-34 Mercenary destroyed. 03160_ Acquired Lgt. Nuclear Core. 03162_ Dropped Wheel. 03163_ Dropped Transport Network Coupler. Map ----- +----------------------------------------------------+ | | | | | | | | | | | ???????????????????????????????????? | | ???????????????????????????????????? | | ???????????????????????????????????? | | ??????????????????????????########## | | ?????????????? ?????????########## | | ?????????????? #????????## | | ??????????????# #????????## | | ??????????????# #????????## | | ??????????????+ + #### | | ??????????????# ########### | | ??????????????# ## ## | | ??????????????# ##""" ## | | ??????????????# ##"R ## | | ????????###??## ##""" ### # ### | | ????????####### m## "" ## | | ????????##== ## ## # | | ????????##== ## # # # | | ????????##]] *= = #### | | ????????##]] = *% ### | | ????????##**!=[==!##" # ### | | ????????##*@===#### ## #### | | ????????######*#### ## #### | | ????????######%#?## ## #### | | ?????????????#%#?## ## #### | | ?????????????#*#?## = ## #### | | ?????????????#=#?## ## # | | ?????????????#*#?## ## # ?? | | ?????????????#*#?## ! !## + ?? | | ??????????????=??############ # ?? | | ??????????????%?? ####= # ?? | | ?????????????? ????????????##%* # ?? | | ?????????????? ????????????##= ##?? | | ?????????????? ????????????## #### | | ?????????????? ????????????## ? #### | | ?????????????? ????????????## | | ???????????????????????????## ???### | | ?????????????????????????????????### | | ???????????????????????????????????? | | ???????????????????????????????????? | | ????????????????????????????? ?????? | | ????????????????????????????? ?????? | | ????????????????????????????? ?????? | | ????????????????????????????? ?????? | | ????????????????????????????? ?????? | | ????????????????????????????? ?????? | +----------------------------------------------------+ Best States ------------- Heat Dissipation 28 Energy Generation 12 Energy Capacity 265 Matter Stores 300 Matter Capacity 300 Sight Range 16 Robot Scan Range 14 Terrain Scan Density 10 Resistance: KI 20 Resistance: TH 20 Resistance: EX 20 Resistance: EM 20 Resistance: I 20 Resistance: S 20 Resistance: P 20 Evasion (%) 40 Recoil Reduction 2 Offensive Hacking 10 Item Schematics ----------------- Utility Shielding | -10/Materials | Hacked Robot Schematics ------------------ None Fabricated ------------ Nothing Repaired ---------- Nothing Studied --------- Mni. Grenade Launcher | -9/Materials | Hacked Lgt. Treads | -9/Materials | Hacked Alien Tech Used ----------------- None Achievements -------------- Resistances Are Futile Challenges ------------ None Game ------ Seed SwarmSpacefoldHoverbase Manual? 0 Play Time 00:27:32 Cumulative 32.5 hours Start 2026.03.23 @ 15:15:01 End 2026.03.23 @ 23:34:47 Sessions 2 Manual Loads 0 Difficulty Adventurer Special Mode None Game No. 43 Rogue 33 Adventurer 10 Explorer 0 Win Type - Total 1 Types 1/0/0/0/0/0/0/0/0/0 Lore% 21 Gallery% 31 Achievement% 24 Wizard Run 0 Options --------- Layout 0 ASCII 0 Keyboard 0 Movement Numpad Keybinds 0 Fullscreen 2 Font 24/Smallcaps Map View 76x50 Zoom Use 0% Tactical HUD 1 Map Filters NONE Filters NONE Steam 1 RUN: 526c9267-93ab-41a3-94b8-222366526706